bitfinex-derivatives/quotes_SOLF0:USTF0_20260310
["timestamp","ask_amount","ask_price","bid_price","bid_amount"]
[1773168590180,2.89445903,86.357,86.312,10.425]
[1773168590384,2.89445903,86.356,86.296,3.95031639]
[1773168590583,2.89445903,86.355,86.296,3.95031639]
[1773168590778,2.89445903,86.354,86.296,3.95031639]
[1773168590982,2.89445903,86.353,86.296,3.95031639]
[1773168591286,3.89615499,86.358,86.296,3.95031639]
[1773168591487,2.89414165,86.357,86.296,3.95031639]
[1773168591685,2.89414165,86.356,86.311,3.95031639]
[1773168591986,2.89414165,86.355,86.311,3.95031639]
[1773168592184,10.419,86.367,86.326,10.423]
[1773168592387,3.89615499,86.365,86.326,10.423]
[1773168592591,2.89414134,86.364,86.326,10.423]
[1773168592791,2.89414134,86.363,86.326,10.423]
[1773168592990,2.89414134,86.362,86.326,10.423]
[1773168593188,2.89414134,86.361,86.326,10.423]
[1773168593389,2.89414134,86.36,86.326,10.423]
[1773168593590,2.89414134,86.359,86.326,10.423]
[1773168593890,2.89414134,86.358,86.326,10.423]
[1773168594092,2.89414134,86.357,86.326,10.423]
[1773168594290,288.16056554,86.384,86.326,3.95031639]
[1773168594485,288.16056554,86.384,86.331,3.95031639]
[1773168594692,3.89615499,86.429,86.331,3.95031639]
[1773168594889,3.89615499,86.424,86.374,10.418]
[1773168595097,3.89615499,86.422,86.374,10.418]
[1773168595393,6.78870864,86.421,86.374,10.418]
[1773168595696,10.412,86.419,86.374,10.418]
[1773168595889,3.89615499,86.417,86.354,3.95031639]
[1773168596894,3.89615499,86.417,86.366,10.419]
[1773168598097,2.89234167,86.416,86.366,10.419]
[1773168598295,3.89615499,86.417,86.354,3.95031639]
[1773168598486,3.89615499,86.436,86.371,3.95031639]
[1773168599898,3.89615499,86.436,86.388,10.416]
[1773168600199,2.89163286,86.435,86.354,3.95031639]
[1773168600388,9.19679285,86.45,86.354,3.95031639]
[1773168600389,3.89615499,86.433,86.354,3.95031639]
[1773168600592,3.89615499,86.431,86.354,3.95031639]
[1773168600793,3.89615499,86.429,86.354,3.95031639]
[1773168601401,3.89615499,86.429,86.377,10.417]
[1773168602803,3.89615499,86.429,86.385,10.416]
[1773168603005,3.89615499,86.429,86.351,3.95031639]
[1773168603597,3.89615499,86.429,86.367,3.95031639]
[1773168603798,2.89197034,86.459,86.367,3.95031639]
[1773168604104,3.89615499,86.457,86.367,3.95031639]
[1773168604304,3.89615499,86.455,86.367,3.95031639]
[1773168604503,2.89142795,86.454,86.385,3.95031639]
[1773168604704,10.259151,86.522,86.34,9.17815349]
[1773168604705,3.89615499,86.478,86.401,3.95031639]
[1773168604903,3.89615499,86.476,86.401,3.95031639]
[1773168605099,3.89615499,86.474,86.401,3.95031639]
[1773168605595,10.406,86.471,86.415,10.413]
[1773168605800,14.30215499,86.471,86.415,10.413]
[1773168606203,3.89615499,86.47,86.415,10.413]
[1773168607107,3.89615499,86.47,86.422,10.412]
[1773168607700,9.17815349,86.5,86.406,10.414]
[1773168607701,3.89615499,86.458,86.406,10.414]
[1773168608304,3.89615499,86.458,86.414,10.413]
[1773168608600,3.89615499,86.458,86.401,3.95031639]
[1773168609001,10.408,86.457,86.412,10.413]
[1773168609201,3.89615499,86.458,86.401,3.95031639]
[1773168609601,9.17815349,86.5,86.401,3.95031639]
[1773168609602,3.89615499,86.473,86.401,3.95031639]
[1773168609811,3.89615499,86.473,86.4,9.17815349]
[1773168609812,3.89615499,86.499,86.421,3.95031639]
[1773168610412,10.403,86.498,86.451,10.408]
[1773168610710,10.403,86.498,86.442,3.95031639]
[1773168610711,3.89615499,86.516,86.442,3.95031639]
[1773168611907,3.89615499,86.502,86.42,9.17815349]
[1773168612113,3.89615499,86.502,86.421,3.95031639]
[1773168612704,10.405,86.477,86.425,10.412]
[1773168613207,3.89615499,86.499,86.421,3.95031639]
[1773168613808,10.404,86.49,86.437,10.41]
[1773168614406,10.404,86.49,86.421,3.95031639]
[1773168614407,14.30115499,86.483,86.428,10.411]
[1773168614709,3.89615499,86.483,86.428,10.411]
[1773168615300,3.89615499,86.483,86.428,3.95031639]
[1773168615604,3.89615499,86.54,86.441,3.95031639]
[1773168615810,10.4,86.524,86.461,3.95031639]
[1773168616109,3.89615499,86.54,86.461,3.95031639]
[1773168616410,3.89615499,86.555,86.481,3.95031639]
[1773168618104,3.89615499,86.536,86.463,3.95031639]
[1773168618607,3.89615499,86.536,86.465,10.407]
[1773168619005,3.89615499,86.536,86.463,3.95031639]
[1773168619202,3.69830951,86.512,86.445,3.95031639]
[1773168619905,3.69830951,86.509,86.411,3.8802448]
[1773168620610,3.69830951,86.509,86.431,14.2912448]
[1773168620811,3.69830951,86.509,86.431,3.8802448]
[1773168621011,3.69830951,86.489,86.41,9.17815349]
[1773168621206,3.69830951,86.489,86.373,20.836]
[1773168621207,3.69830951,86.469,86.388,3.8802448]
[1773168621405,10.41,86.441,86.388,3.8802448]
[1773168621904,10.411,86.434,86.388,3.8802448]
[1773168622307,3.69830951,86.451,86.388,3.8802448]
[1773168622509,3.69830951,86.451,86.389,10.416]
[1773168623102,10.41,86.438,86.388,3.8802448]
[1773168624712,10.409,86.447,86.389,3.8802448]
[1773168624920,3.69830951,86.469,86.391,3.8802448]
[1773168625708,3.69830951,86.469,86.4,3.8802448]
[1773168626307,3.69830951,86.467,86.4,3.8802448]
[1773168627210,2.89096683,86.466,86.4,3.8802448]
[1773168627410,10.409,86.449,86.4,3.8802448]
[1773168627806,10.409,86.449,86.39,10.416]
[1773168627807,3.69830951,86.462,86.39,10.416]
[1773168628001,3.69830951,86.46,86.39,10.416]
[1773168628203,3.69830951,86.458,86.39,10.416]
[1773168628404,3.69830951,86.456,86.39,10.416]
[1773168628604,10.409,86.45,86.39,10.416]
[1773168629213,10.41,86.442,86.39,10.416]
[1773168629516,3.69830951,86.441,86.371,3.8802448]
[1773168630410,10.41,86.44,86.389,10.416]
[1773168631404,10.411,86.432,86.38,3.8802448]
[1773168631616,3.69830951,86.44,86.361,3.8802448]
[1773168632312,3.69830951,86.44,86.37,10.418]
[1773168632822,3.69830951,86.456,86.394,3.8802448]
[1773168633311,10.41,86.44,86.394,3.8802448]
[1773168633521,3.69830951,86.456,86.376,3.8802448]
[1773168634015,10.409,86.45,86.393,3.8802448]
[1773168634515,3.69830951,86.454,86.393,3.8802448]
[1773168634712,10.41,86.442,86.386,10.416]
[1773168634912,3.69830951,86.451,86.386,10.416]
[1773168635112,3.69830951,86.449,86.375,3.8802448]
[1773168635308,9.17815349,86.47,86.35,9.17815349]
[1773168635309,3.69830951,86.467,86.401,10.414]
[1773168635512,3.69830951,86.465,86.401,10.414]
[1773168635714,3.69830951,86.463,86.401,10.414]
[1773168635910,3.69830951,86.461,86.401,10.414]
[1773168636117,3.69830951,86.459,86.401,10.414]
[1773168636314,3.69830951,86.457,86.401,10.414]
[1773168636514,3.69830951,86.457,86.402,3.8802448]
[1773168637110,3.69830951,86.457,86.412,10.413]
[1773168638116,3.69830951,86.457,86.402,3.8802448]
[1773168638913,2.88989019,86.502,86.421,3.8802448]
[1773168639119,2.88989019,86.502,86.385,34.81]
[1773168639120,0.00089019,86.501,86.441,3.8802448]
[1773168639317,3.69830951,86.532,86.482,10.405]
[1773168639720,3.69830951,86.532,86.461,3.8802448]
[1773168640719,3.69830951,86.532,86.48,10.405]
[1773168641014,3.69830951,86.552,86.481,3.8802448]
[1773168641218,3.69830951,86.552,86.491,10.404]
[1773168641416,9.17815349,86.57,86.481,3.8802448]
[1773168641615,3.69830951,86.549,86.481,3.8802448]
[1773168642316,3.69830951,86.549,86.46,9.17815349]
[1773168642317,10.395,86.563,86.503,3.8802448]
[1773168643220,10.395,86.563,86.506,10.402]
[1773168644323,3.69830951,86.569,86.503,3.8802448]
[1773168644719,3.69830951,86.569,86.481,3.8802448]
[1773168645220,3.69830951,86.549,86.481,3.8802448]
[1773168645916,3.69830951,86.569,86.481,3.8802448]
[1773168647426,4.05515273,86.554,86.481,3.8802448]
[1773168648229,4.05515273,86.544,86.481,4.05080741]
[1773168649317,4.05515273,86.544,86.483,10.405]
[1773168649318,10.398,86.536,86.483,10.405]
[1773168650222,10.399,86.528,86.474,10.406]
[1773168650420,3.81281257,86.527,86.462,3.68416906]
[1773168651028,3.81281257,86.527,86.411,21.54627377]
[1773168651029,3.81281257,86.527,86.431,3.68416906]
[1773168651325,3.81281257,86.525,86.451,3.68416906]
[1773168651522,3.81281257,86.525,86.407,161.999]
[1773168651523,3.81281257,86.549,86.471,3.68416906]
[1773168651718,2.88824276,86.548,86.471,3.68416906]
[1773168651922,3.81281257,86.546,86.471,3.68416906]
[1773168652121,3.81281257,86.544,86.471,3.68416906]
[1773168652329,3.81281257,86.542,86.471,3.68416906]
[1773168652526,10.398,86.537,86.471,3.68416906]
[1773168652830,3.81281257,86.54,86.471,3.68416906]
[1773168653025,3.81281257,86.538,86.471,3.68416906]
[1773168653221,3.81281257,86.557,86.471,3.68416906]
[1773168653428,2.88776053,86.556,86.491,3.68416906]
[1773168653732,10.397,86.548,86.498,10.403]
[1773168655934,10.398,86.54,86.491,3.68416906]
[1773168656128,3.81281257,86.555,86.471,3.68416906]
[1773168656528,3.81281257,86.529,86.471,3.68416906]
[1773168656928,3.81281257,86.551,86.471,3.68416906]
[1773168657538,3.81281257,86.551,86.49,3.68416906]
[1773168658228,14.20881257,86.551,86.49,3.68416906]
[1773168658434,3.81281257,86.551,86.49,3.68416906]
[1773168659032,10.398,86.535,86.49,3.68416906]
[1773168659335,10.398,86.535,86.471,3.68416906]
[1773168659837,10.4,86.518,86.451,3.68416906]
[1773168660227,10.4,86.518,86.472,10.406]
[1773168660536,3.81281257,86.534,86.451,3.68416906]
[1773168660932,9.17815349,86.54,86.451,3.68416906]
[1773168660933,3.81281257,86.527,86.451,3.68416906]
[1773168661536,3.81281257,86.527,86.474,10.406]
[1773168662333,3.81281257,86.527,86.451,3.68416906]
[1773168662334,10.401,86.517,86.466,10.407]
[1773168662733,10.4,86.525,86.451,3.68416906]
[1773168663138,10.4,86.525,86.481,3.68416906]
[1773168663638,10.4,86.525,86.472,10.406]
[1773168663840,10.4,86.519,86.472,10.406]
[1773168664839,10.401,86.516,86.472,10.406]
[1773168665045,14.21381257,86.516,86.472,10.406]
[1773168665237,3.81281257,86.536,86.467,3.68416906]
[1773168665440,10.399,86.528,86.471,3.68416906]
[1773168665743,3.81281257,86.536,86.471,3.68416906]
[1773168666142,161.644,86.597,86.46,9.15672059]
[1773168666143,3.81281257,86.52,86.46,9.15672059]
[1773168666342,3.81281257,86.52,86.461,3.68416906]
[1773168666845,3.81281257,86.526,86.475,10.406]
[1773168668143,10.4,86.519,86.475,10.406]
[1773168668539,3.81281257,86.519,86.441,3.68416906]
[1773168668740,10.402,86.506,86.441,3.68416906]
[1773168669246,3.81281257,86.519,86.467,10.406]
[1773168669546,3.81281257,86.519,86.441,3.68416906]
[1773168671141,3.81281257,86.504,86.424,3.68416906]
[1773168672145,9.15672059,86.52,86.424,3.68416906]
[1773168672146,3.81281257,86.502,86.424,3.68416906]
[1773168672344,3.81281257,86.5,86.424,3.68416906]
[1773168672546,10.404,86.485,86.446,10.409]
[1773168673646,10.404,86.492,86.446,10.409]
[1773168674144,3.81281257,86.5,86.446,10.409]
[1773168674444,10.403,86.494,86.453,10.408]
[1773168675143,20.8,86.522,86.42,9.15672059]
[1773168675144,3.81281257,86.493,86.421,3.68416906]
[1773168675348,3.81281257,86.491,86.421,3.68416906]
[1773168675546,3.81281257,86.491,86.372,34.81]
[1773168675547,10.409,86.445,86.401,3.68416906]
[1773168675843,3.81281257,86.455,86.401,3.68416906]
[1773168676150,3.81281257,86.472,86.401,3.68416906]
[1773168676344,10.407,86.463,86.42,10.412]
[1773168676748,10.408,86.456,86.411,10.413]
[1773168676950,3.81281257,86.472,86.381,3.68416906]
[1773168677145,3.81281257,86.459,86.381,3.68416906]
[1773168677350,9.15672059,86.46,86.386,10.416]
[1773168677351,10.411,86.433,86.386,10.416]
[1773168677752,3.81281257,86.432,86.386,10.416]
[1773168678052,3.81281257,86.432,86.364,3.68416906]
[1773168678646,14.22481257,86.423,86.369,10.418]
[1773168678845,14.22481257,86.423,86.364,3.68416906]
[1773168679048,3.81281257,86.422,86.364,3.68416906]
[1773168679244,3.81281257,86.422,86.375,10.418]
[1773168680155,3.69295386,86.439,86.364,3.68416906]
[1773168680452,3.69295386,86.439,86.35,9.15672059]
[1773168680654,3.69295386,86.439,86.346,4.04316771]
[1773168680951,3.69295386,86.411,86.346,4.04316771]
[1773168681453,3.69295386,86.411,86.364,10.419]
[1773168682050,3.69295386,86.41,86.355,10.42]
[1773168682951,3.69295386,86.398,86.33,13.1998883]
[1773168683251,3.69295386,86.398,86.331,4.04316771]
[1773168683451,3.69295386,86.393,86.331,4.04316771]
[1773168683648,3.69295386,86.393,86.314,4.04316771]
[1773168685055,3.69295386,86.393,86.345,10.421]
[1773168685252,3.69295386,86.393,86.334,4.04316771]
[1773168685454,10.415,86.401,86.334,4.04316771]
[1773168685649,10.413,86.41,86.353,10.42]
[1773168686059,3.69295386,86.411,86.334,4.04316771]
[1773168686262,3.69295386,86.411,86.365,10.419]
[1773168686654,10.411,86.429,86.373,10.418]
[1773168686855,3.69295386,86.43,86.374,4.04316771]
[1773168687556,3.69295386,86.43,86.391,10.416]
[1773168687856,3.69295386,86.459,86.391,4.04316771]
[1773168688056,3.69295386,86.477,86.391,4.04316771]
[1773168688659,10.407,86.462,86.408,10.414]
[1773168689064,3.69295386,86.461,86.391,4.04316771]
[1773168689263,3.69295386,86.453,86.401,10.414]
[1773168690761,10.407,86.463,86.409,10.413]
[1773168691858,10.407,86.463,86.417,10.413]
[1773168692556,10.407,86.463,86.408,10.414]
[1773168692758,14.09995386,86.463,86.408,10.414]
[1773168693058,10.407,86.461,86.408,10.414]
[1773168693459,3.69295386,86.46,86.408,10.414]
[1773168693656,10.406,86.47,86.391,4.04316771]
[1773168693966,3.69295386,86.469,86.391,4.04316771]
[1773168694764,3.69295386,86.458,86.391,4.04316771]
[1773168695265,3.69295386,86.453,86.371,4.04316771]
[1773168696060,10.409,86.447,86.398,10.415]
[1773168696263,14.10195386,86.447,86.398,10.415]
[1773168696463,3.69295386,86.446,86.371,4.04316771]
[1773168696664,3.69295386,86.431,86.381,10.417]
[1773168696867,3.69295386,86.459,86.371,4.04316771]
[1773168697960,10.41,86.438,86.389,10.416]
[1773168700464,10.41,86.438,86.371,4.04316771]
[1773168700465,10.41,86.438,86.397,10.415]
[1773168702071,10.411,86.431,86.389,10.416]
[1773168702262,3.69295386,86.442,86.371,4.04316771]
[1773168702666,3.69295386,86.432,86.387,10.416]
[1773168702967,3.69295386,86.454,86.371,4.04316771]
[1773168703472,10.409,86.448,86.406,10.414]
[1773168703666,3.69295386,86.447,86.37,13.1998883]
[1773168703871,3.69295386,86.447,86.371,4.04316771]
[1773168704674,10.411,86.433,86.39,10.416]
[1773168705972,10.41,86.441,86.396,10.415]
[1773168706570,9.15672059,86.46,86.368,3.78179595]
[1773168706571,4.04055839,86.435,86.368,3.78179595]
[1773168707667,4.04055839,86.417,86.37,10.418]
[1773168708073,4.04055839,86.417,86.351,3.78179595]
[1773168708976,4.04055839,86.415,86.351,3.78179595]
[1773168709879,10.413,86.414,86.368,10.418]
[1773168711074,10.413,86.414,86.351,3.78179595]
[1773168711075,3.96854427,86.413,86.36,10.419]
[1773168711982,10.414,86.408,86.367,10.419]
[1773168712972,14.38254427,86.408,86.367,10.419]
[1773168713271,3.96854427,86.408,86.351,3.78179595]
[1773168713477,3.96854427,86.406,86.321,3.83873024]
[1773168713676,3.96854427,86.404,86.321,3.83873024]
[1773168714180,10.416,86.39,86.336,3.83873024]
[1773168714372,3.96854427,86.402,86.32,9.15672059]
[1773168714568,3.96854427,86.399,86.319,3.83873024]
[1773168714774,3.96854427,86.37,86.302,3.83873024]
[1773168715078,3.96854427,86.368,86.302,3.83873024]
[1773168715378,3.96854427,86.358,86.302,3.83873024]
[1773168715773,3.96854427,86.358,86.285,5.0]
[1773168715774,3.96854427,86.356,86.285,3.83873024]
[1773168716772,3.96854427,86.341,86.285,3.83873024]
[1773168717375,3.96854427,86.341,86.287,3.83873024]
[1773168717879,3.96854427,86.341,86.283,10.429]
[1773168719572,3.96854427,86.341,86.27,3.83873024]
[1773168719881,10.422,86.342,86.293,14.26673024]
[1773168720376,10.423,86.334,86.293,3.83873024]
[1773168720573,10.423,86.334,86.284,10.428]
[1773168721177,3.96854427,86.342,86.284,10.428]
[1773168721375,3.96854427,86.342,86.276,3.83873024]
[1773168721581,3.96854427,86.339,86.258,3.83873024]
[1773168721780,3.96854427,86.312,86.258,3.83873024]
[1773168721974,3.96854427,86.329,86.28,10.429]
[1773168722981,3.96854427,86.329,86.258,3.83873024]
[1773168723378,3.96854427,86.311,86.239,3.83873024]
[1773168723777,3.96854427,86.309,86.239,3.83873024]
[1773168724078,3.96854427,86.307,86.239,3.83873024]
[1773168724582,10.427,86.297,86.24,10.434]
[1773168724977,10.427,86.295,86.24,10.434]
[1773168725374,3.96854427,86.313,86.249,10.433]
[1773168725578,3.96854427,86.303,86.241,3.83873024]
[1773168725780,3.96854427,86.299,86.224,3.83873024]
[1773168725971,3.96854427,86.299,86.219,10.436]
[1773168726178,3.96854427,86.263,86.191,3.83873024]
[1773168726485,3.96854427,86.263,86.208,10.438]
[1773168726681,3.96854427,86.263,86.191,3.83873024]
[1773168726682,3.96854427,86.282,86.191,3.83873024]
[1773168726876,3.96854427,86.299,86.211,3.83873024]
[1773168727180,3.96854427,86.299,86.236,10.434]
[1773168727382,10.428,86.289,86.23,3.83873024]
[1773168727577,14.39654427,86.289,86.23,3.83873024]
[1773168727877,3.96854427,86.306,86.234,3.83873024]
[1773168728182,3.96854427,86.301,86.234,3.83873024]
[1773168728571,3.96854427,86.299,86.234,3.83873024]
[1773168728777,10.427,86.298,86.234,3.83873024]
[1773168728977,3.96854427,86.299,86.234,3.83873024]
[1773168729186,14.39354427,86.317,86.234,3.83873024]
[1773168729483,3.96854427,86.316,86.262,10.431]
[1773168729679,3.96854427,86.316,86.257,3.83873024]
[1773168729877,3.96854427,86.333,86.257,3.83873024]
[1773168730279,3.96854427,86.323,86.23,9.21122786]
[1773168730483,3.96854427,86.319,86.231,3.83873024]
[1773168731382,10.427,86.301,86.248,10.433]
[1773168731584,3.96854427,86.319,86.248,3.83873024]
[1773168732176,10.425,86.311,86.262,10.431]
[1773168732381,3.96854427,86.319,86.262,10.431]
[1773168733185,3.96854427,86.339,86.271,3.83873024]
[1773168733381,3.96854427,86.339,86.251,3.83873024]
[1773168733588,3.96854427,86.319,86.251,3.83873024]
[1773168733887,3.96854427,86.294,86.234,3.83873024]
[1773168735683,3.96854427,86.319,86.254,3.83873024]
[1773168736386,3.96854427,86.338,86.251,3.83873024]
[1773168736785,9.21122786,86.34,86.23,9.21122786]
[1773168736786,10.428,86.292,86.238,10.434]
[1773168736988,10.428,86.292,86.231,3.83873024]
[1773168738389,10.428,86.292,86.246,10.433]
[1773168738695,10.428,86.292,86.231,3.83873024]
[1773168738990,14.39554427,86.3,86.231,3.83873024]
[1773168740392,14.39554427,86.3,86.252,10.432]
[1773168740589,10.425,86.31,86.248,3.91194948]
[1773168740897,10.425,86.31,86.261,10.431]
[1773168741291,9.21122786,86.34,86.23,13.12317734]
[1773168741292,3.72938728,86.302,86.23,13.12317734]
[1773168741594,3.72938728,86.302,86.231,3.91194948]
[1773168742498,3.72938728,86.299,86.214,3.91194948]
[1773168743099,3.72938728,86.279,86.196,3.91194948]
[1773168743397,3.72938728,86.248,86.19,10.44]
[1773168743802,3.72938728,86.248,86.179,3.91194948]
[1773168744393,3.72938728,86.284,86.191,3.91194948]
[1773168744692,10.431,86.265,86.218,10.437]
[1773168744893,10.431,86.265,86.208,3.91194948]
[1773168744894,3.72938728,86.279,86.208,3.91194948]
[1773168746091,10.431,86.266,86.216,10.437]
[1773168746694,3.72938728,86.256,86.206,10.438]
[1773168746899,3.72938728,86.279,86.191,3.91194948]
[1773168747588,10.432,86.258,86.191,3.91194948]
[1773168747995,10.431,86.266,86.212,10.437]
[1773168748197,10.431,86.266,86.208,3.91194948]
[1773168748392,3.72938728,86.296,86.208,3.91194948]
[1773168748797,10.43,86.273,86.224,10.436]
[1773168748992,3.72938728,86.279,86.208,3.91194948]
[1773168749395,3.72938728,86.279,86.23,10.435]
[1773168750301,10.429,86.278,86.23,10.435]
[1773168750900,3.72938728,86.296,86.23,3.91194948]
[1773168751395,3.72938728,86.296,86.251,10.433]
[1773168751993,10.427,86.295,86.242,10.434]
[1773168752900,3.72938728,86.296,86.251,10.432]
[1773168753300,3.72938728,86.296,86.23,3.91194948]
[1773168753701,14.15638728,86.296,86.249,10.433]
[1773168753898,14.15638728,86.296,86.23,3.91194948]
[1773168753899,3.72938728,86.296,86.23,3.91194948]
[1773168754601,14.15438728,86.313,86.25,3.91194948]
[1773168754897,3.72938728,86.313,86.25,3.91194948]
[1773168755501,3.72938728,86.289,86.215,3.91194948]
[1773168755901,3.72938728,86.278,86.215,3.91194948]
[1773168757006,10.429,86.278,86.23,14.34694948]
[1773168758003,10.43,86.271,86.23,10.435]
[1773168758707,10.43,86.271,86.222,10.436]
[1773168759007,10.431,86.263,86.222,10.436]
[1773168759602,10.43,86.27,86.222,10.436]
[1773168760408,10.43,86.27,86.228,10.435]
[1773168763012,3.72938728,86.274,86.228,10.435]
[1773168763213,20.851,86.313,86.21,9.21122786]
[1773168763214,3.72938728,86.297,86.237,3.91194948]
[1773168763409,2.89653974,86.296,86.237,3.91194948]
[1773168763612,2.89653974,86.295,86.237,3.91194948]
[1773168763810,2.89653974,86.294,86.237,3.91194948]
[1773168764113,3.72938728,86.282,86.219,3.91194948]
[1773168764315,2.89653974,86.281,86.219,3.91194948]
[1773168764508,2.89653974,86.28,86.219,3.91194948]
[1773168764709,2.89653974,86.279,86.219,3.91194948]
[1773168764905,10.43,86.277,86.219,3.91194948]
[1773168765110,3.72938728,86.275,86.21,9.21122786]
[1773168765311,3.72938728,86.273,86.21,9.21122786]
[1773168765609,3.72938728,86.271,86.203,3.91194948]
[1773168765812,3.72938728,86.269,86.203,3.91194948]
[1773168766117,3.72938728,86.24,86.184,3.91194948]
[1773168766808,3.94661605,86.263,86.199,3.85269443]
[1773168767010,3.94661605,86.261,86.199,3.85269443]
[1773168767217,3.94661605,86.259,86.199,3.85269443]
[1773168767410,3.94661605,86.257,86.199,3.85269443]
[1773168767611,3.94661605,86.243,86.201,10.439]
[1773168767910,3.94661605,86.243,86.185,3.85269443]
[1773168768215,3.94661605,86.24,86.193,10.44]
[1773168768417,3.94661605,86.238,86.168,3.85269443]
[1773168768616,3.94661605,86.236,86.168,3.85269443]
[1773168768916,3.94661605,86.236,86.171,3.85269443]
[1773168769319,10.433,86.249,86.171,3.85269443]
[1773168769507,3.71259994,86.27,86.191,4.0518657]
[1773168769710,3.71259994,86.268,86.191,4.0518657]
[1773168769906,2.89741694,86.267,86.191,4.0518657]
[1773168770106,3.71259994,86.266,86.191,4.0518657]
[1773168771214,10.432,86.259,86.191,4.0518657]
[1773168772015,10.432,86.259,86.215,10.437]
[1773168774514,3.71259994,86.253,86.208,10.438]
[1773168775717,3.71259994,86.269,86.208,4.0518657]
[1773168776021,3.71259994,86.299,86.208,4.0518657]
[1773168776221,2.89726331,86.298,86.208,4.0518657]
[1773168776418,2.89726331,86.298,86.2,9.21122786]
[1773168776419,10.429,86.282,86.237,10.434]
[1773168777519,3.71259994,86.281,86.225,4.0518657]
[1773168777712,3.71259994,86.281,86.201,4.0518657]
[1773168778024,3.71259994,86.279,86.201,4.0518657]
[1773168778523,10.431,86.266,86.22,10.436]
[1773168778724,10.431,86.266,86.201,4.0518657]
[1773168778725,3.71259994,86.265,86.201,4.0518657]
[1773168778927,8.40163412,86.311,86.201,4.0518657]
[1773168778928,3.71259994,86.256,86.201,4.0518657]
[1773168779723,10.433,86.251,86.209,10.438]
[1773168780217,10.434,86.243,86.184,4.0518657]
[1773168780920,9.21122786,86.28,86.175,21.54627377]
[1773168780921,3.71259994,86.236,86.175,21.54627377]
[1773168781126,3.71259994,86.236,86.168,4.0518657]
[1773168782428,10.436,86.223,86.176,10.442]
[1773168782817,3.71259994,86.222,86.162,21.54627377]
[1773168783127,3.71259994,86.21,86.152,21.54627377]
[1773168783424,3.71259994,86.21,86.153,4.0518657]
[1773168783923,3.71259994,86.207,86.159,10.444]
[1773168784126,3.71259994,86.207,86.153,4.0518657]
[1773168784127,3.71259994,86.207,86.137,4.0518657]
[1773168784622,3.71259994,86.189,86.122,2.01914708]
[1773168784824,3.71259994,86.189,86.12,25.59813947]
[1773168785120,3.71259994,86.18,86.132,10.447]
[1773168785319,3.71259994,86.18,86.12,4.0518657]
[1773168785724,3.71259994,86.214,86.137,4.0518657]
[1773168786219,10.437,86.213,86.155,10.444]
[1773168786627,3.71259994,86.239,86.151,4.0518657]
[1773168786825,3.71259994,86.239,86.18,4.0518657]
[1773168787234,3.71259994,86.239,86.199,10.439]
[1773168787420,3.71259994,86.248,86.18,4.0518657]
[1773168787929,3.71259994,86.248,86.198,4.0518657]
[1773168788131,3.71259994,86.277,86.198,4.0518657]
[1773168788331,3.71259994,86.275,86.198,4.0518657]
[1773168788528,3.71259994,86.273,86.198,4.0518657]
[1773168788728,10.432,86.256,86.198,4.0518657]
[1773168788927,3.71259994,86.27,86.198,4.0518657]
[1773168789226,3.71259994,86.256,86.198,4.0518657]
[1773168789728,10.432,86.253,86.2,10.439]
[1773168790427,3.71259994,86.252,86.2,10.439]
[1773168792724,3.71259994,86.252,86.181,4.0518657]
[1773168792725,3.71259994,86.252,86.208,10.438]
[1773168793030,3.71259994,86.271,86.208,4.0518657]
[1773168793231,3.71259994,86.289,86.208,4.0518657]
[1773168793731,3.71259994,86.289,86.229,4.0518657]
[1773168793924,3.71259994,86.306,86.229,4.0518657]
[1773168794129,10.426,86.305,86.243,10.434]
[1773168794528,14.13859994,86.305,86.243,10.434]
[1773168794720,3.71259994,86.301,86.234,10.435]
[1773168795126,3.71259994,86.301,86.229,4.0518657]
[1773168795430,3.71259994,86.301,86.252,10.432]
[1773168795620,3.71259994,86.318,86.252,10.432]
[1773168795826,10.426,86.303,86.252,10.432]
[1773168796526,3.71259994,86.302,86.221,4.0518657]
[1773168797131,10.427,86.299,86.243,10.434]
[1773168797330,3.71259994,86.298,86.243,10.434]
[1773168797527,14.13959994,86.295,86.232,10.435]
[1773168797730,3.71259994,86.294,86.221,4.0518657]
[1773168798832,2.89756928,86.293,86.202,4.0518657]
[1773168799131,3.71259994,86.279,86.202,4.0518657]